bitfinex/quotes_BTCUSD_20251208
["timestamp","ask_amount","ask_price","bid_price","bid_amount"]
[1765218564739,0.01756,90254.0,90253.0,0.27600672]
[1765218564948,0.01756,90254.0,90253.0,0.05340744]
[1765218565332,0.01756,90254.0,90253.0,0.27600672]
[1765218565533,0.01756,90254.0,90253.0,0.27500672]
[1765218565960,0.01756,90254.0,90253.0,0.27900672]
[1765218566513,0.01756,90254.0,90253.0,0.27800672]
[1765218566701,0.01756,90254.0,90253.0,0.27900672]
[1765218567487,0.01756,90254.0,90253.0,0.01757744]
[1765218567488,0.23915682,90254.0,90253.0,0.01757744]
[1765218567689,0.01756,90254.0,90253.0,0.05740744]
[1765218567991,0.01756,90254.0,90253.0,0.27900672]
[1765218568562,0.01756,90254.0,90253.0,0.00521744]
[1765218568563,0.23915682,90254.0,90253.0,0.00521744]
[1765218569496,0.01756,90254.0,90253.0,0.01757744]
[1765218569871,0.23915682,90254.0,90253.0,0.01757744]
[1765218571453,0.23915682,90254.0,90253.0,0.00521744]
[1765218572105,0.25654969,90254.0,90253.0,0.00521744]
[1765218572327,0.28058969,90254.0,90253.0,0.00521744]
[1765218572821,0.31315716,90254.0,90253.0,0.00521744]
[1765218573033,0.31315716,90254.0,90253.0,0.00421744]
[1765218573249,0.31315716,90254.0,90253.0,0.00021744]
[1765218574079,0.31415716,90254.0,90253.0,0.00021744]
[1765218574288,0.29196117,90254.0,90253.0,0.00021744]
[1765218574946,0.28158969,90254.0,90253.0,0.00021744]
[1765218575583,0.30378568,90254.0,90253.0,0.00121744]
[1765218575806,0.31415774,90254.0,90253.0,0.00121744]
[1765218576147,0.31315774,90254.0,90253.0,0.00121744]
[1765218576350,0.31315774,90254.0,90253.0,0.00021744]
[1765218577842,0.63715769,90254.0,90253.0,0.00021744]
[1765218577971,0.74563697,90254.0,90253.0,0.00021744]
[1765218578178,0.74563697,90254.0,90250.0,0.0002]
[1765218578179,0.22162874,90241.0,90230.0,0.0002]
[1765218578383,0.25496874,90241.0,90230.0,0.0002]
[1765218578584,0.28938004,90241.0,90230.0,0.0002]
[1765218578791,0.38812888,90241.0,90230.0,0.0002]
[1765218578989,0.41032487,90241.0,90230.0,0.0002]
[1765218579358,0.77365226,90241.0,90230.0,0.0002]
[1765218579509,0.73532526,90241.0,90230.0,0.0002]
[1765218579708,0.01108696,90196.0,90193.0,0.01236]
[1765218579911,0.01756,90195.0,90194.0,0.23283145]
[1765218580331,0.01756,90195.0,90194.0,0.24904145]
[1765218581177,0.01756,90195.0,90194.0,0.23283145]
[1765218581610,0.01756,90195.0,90194.0,0.25904145]
[1765218581611,0.01856,90195.0,90194.0,0.25904145]
[1765218581815,0.001,90195.0,90194.0,0.28266145]
[1765218582458,0.01756,90206.0,90194.0,0.28266145]
[1765218582459,0.01756,90206.0,90205.0,0.22171719]
[1765218582869,0.01756,90206.0,90202.0,0.22172341]
[1765218582870,0.23280486,90205.0,90202.0,0.22172428]
[1765218583084,0.04099,90206.0,90203.0,0.23280768]
[1765218583291,0.01105,90203.0,90201.0,0.23281135]
[1765218583474,0.01108659,90199.0,90194.0,0.02108721]
[1765218583675,0.22174178,90195.0,90194.0,0.01]
[1765218584010,0.22174178,90195.0,90179.0,0.04590811]
[1765218584011,0.01108844,90184.0,90181.0,0.01176]
[1765218584223,0.22177286,90183.0,90181.0,0.01176]
[1765218584437,0.01756,90183.0,90181.0,0.01176]
[1765218584662,0.01756,90183.0,90175.0,0.01108954]
[1765218584663,0.01108917,90178.0,90175.0,0.01108954]
[1765218584858,0.23933251,90183.0,90177.0,0.0110893]
[1765218585009,0.01108893,90180.0,90173.0,0.01108979]
[1765218585231,0.01108893,90180.0,90170.0,0.0002]
[1765218585232,0.0110893,90177.0,90170.0,0.0002]
[1765218585399,0.22179834,90172.0,90170.0,0.0002]
[1765218585616,0.01756,90171.0,90170.0,0.0002]
[1765218585819,0.01756,90171.0,90170.0,0.22200326]
[1765218586087,0.01756,90171.0,90170.0,0.23736326]
[1765218586538,0.01756,90171.0,90170.0,0.24136326]
[1765218586742,0.01108807,90187.0,90179.0,0.22178112]
[1765218586925,0.02343,90199.0,90177.0,0.0110893]
[1765218586926,0.01108708,90195.0,90189.0,0.01108782]
[1765218587117,0.01108708,90195.0,90188.0,0.02712]
[1765218587118,0.23283953,90191.0,90188.0,0.01176]
[1765218587323,0.01108758,90191.0,90188.0,0.01108794]
[1765218587542,0.01105,90189.0,90187.0,0.01108807]
[1765218588088,0.01108881,90181.0,90177.0,0.0110893]
[1765218588266,0.23287368,90178.0,90173.0,0.01108979]
[1765218588414,0.01108893,90180.0,90173.0,0.01108979]
[1765218588415,0.01108905,90179.0,90175.0,0.01108954]
[1765218588611,0.01756,90181.0,90180.0,0.22177866]
[1765218588851,0.0110893,90177.0,90174.0,0.01108967]
[1765218589059,0.23287077,90179.0,90175.0,0.23287957]
[1765218589362,0.23287507,90178.0,90175.0,0.22179007]
[1765218589526,0.01108917,90178.0,90175.0,0.2358789]
[1765218589864,0.23286792,90180.0,90177.0,0.00227072]
[1765218590063,0.23286792,90180.0,90176.0,0.23287687]
[1765218590365,0.22177895,90180.0,90176.0,0.01108942]
[1765218590549,0.001,90179.0,90176.0,0.23287717]
[1765218590746,0.22178391,90178.0,90175.0,0.01108954]
[1765218590978,0.22178391,90178.0,90177.0,0.007]
[1765218591178,0.23287053,90179.0,90177.0,0.007]
[1765218591379,0.23287429,90178.0,90175.0,0.23288026]
[1765218591605,0.23287429,90178.0,90176.0,0.007]
[1765218591955,0.23287429,90178.0,90174.0,0.23288169]
[1765218592155,0.2217911,90175.0,90172.0,0.01108991]
[1765218592349,0.23287792,90176.0,90172.0,0.23288758]
[1765218592555,0.23287072,90179.0,90176.0,0.01108942]
[1765218592792,0.01108831,90185.0,90178.0,0.01108917]
[1765218592990,0.01108905,90179.0,90175.0,0.01108954]
[1765218593201,0.01108905,90179.0,90177.0,0.007]
[1765218593202,0.001,90179.0,90177.0,0.007]
[1765218593371,0.001,90179.0,90178.0,0.23714358]
[1765218593590,0.001,90179.0,90175.0,0.01108954]
[1765218593591,0.01108905,90179.0,90174.0,0.003]
[1765218593870,0.01756,90183.0,90180.0,0.01108893]
[1765218594098,0.01756,90183.0,90182.0,0.23713374]
[1765218594338,0.22175175,90191.0,90185.0,0.01108831]
[1765218594500,0.01756,90190.0,90187.0,0.22176067]
[1765218594828,0.0286477,90190.0,90187.0,0.23284874]
[1765218595035,0.01756,90190.0,90189.0,0.23711653]
[1765218595674,0.01756,90190.0,90189.0,0.26084653]
[1765218596644,0.01108561,90207.0,90199.0,0.23281797]
[1765218596645,0.22172559,90202.0,90199.0,0.23281797]
[1765218596878,0.01756,90201.0,90199.0,0.23281797]
[1765218597091,0.01756,90201.0,90200.0,0.02373]
[1765218597307,0.01756,90201.0,90200.0,0.03909]
[1765218597454,0.23278628,90212.0,90209.0,0.01108536]
[1765218597654,0.23278628,90212.0,90210.0,0.02496]
[1765218597655,0.23926257,90211.0,90210.0,0.02496]
[1765218597969,0.23926257,90211.0,90210.0,0.0096]
[1765218598156,0.01756,90211.0,90210.0,0.0096]
[1765218598542,0.23926245,90211.0,90210.0,0.0096]
[1765218599294,0.23926245,90211.0,90210.0,0.0106]
[1765218600177,0.25448245,90211.0,90210.0,0.001]
[1765218600387,0.25448245,90211.0,90210.0,0.002]
[1765218600388,0.67504886,90211.0,90210.0,0.002]
[1765218600583,0.62619131,90211.0,90210.0,0.002]
[1765218601175,0.22177374,90182.0,90181.0,0.0096]
[1765218601475,0.04386868,90182.0,90181.0,0.00215111]
[1765218601681,0.29215529,90182.0,90181.0,0.00215111]
[1765218601882,0.23447529,90182.0,90181.0,0.00215111]
[1765218602058,0.25203529,90182.0,90181.0,0.00215111]
[1765218602273,0.29215529,90182.0,90181.0,0.00215111]
[1765218602451,0.29215529,90182.0,90181.0,0.00415111]
[1765218602655,0.00161287,90182.0,90181.0,0.00415111]
[1765218602854,0.00161287,90182.0,90181.0,0.06626873]
[1765218602855,0.01756,90182.0,90181.0,0.06626873]
[1765218603075,0.01756,90182.0,90181.0,0.04209111]
[1765218603274,0.03278,90182.0,90181.0,0.00215111]
[1765218603540,0.02017287,90182.0,90181.0,0.00215111]
[1765218603732,0.01917287,90182.0,90181.0,0.00215111]
[1765218603936,0.03439287,90182.0,90181.0,0.00215111]
[1765218604232,0.01917287,90182.0,90181.0,0.00315111]
[1765218604437,0.01105,90192.0,90183.0,0.01108856]
[1765218604613,0.22174803,90193.0,90191.0,0.01171]
[1765218604830,0.01756,90192.0,90191.0,0.01171]
[1765218605030,0.0497994,90195.0,90192.0,0.03994]
[1765218605031,0.01108708,90195.0,90192.0,0.03994]
[1765218605236,0.01756,90194.0,90192.0,0.26168778]
[1765218605434,0.01756,90194.0,90192.0,0.23713852]
[1765218605628,0.01756,90194.0,90192.0,0.01539]
[1765218605841,0.01756,90194.0,90193.0,0.03994]
[1765218606218,0.002,90195.0,90192.0,0.01108745]
[1765218606416,0.002,90195.0,90187.0,0.22175916]
[1765218606417,0.23286123,90183.0,90179.0,0.01108905]
[1765218606763,0.23286123,90183.0,90170.0,0.22200249]
[1765218606764,0.01105,90176.0,90173.0,0.23288438]
[1765218606953,0.01105,90176.0,90173.0,0.01108979]
[1765218607161,0.01105,90176.0,90170.0,0.0002]
[1765218607162,0.22179834,90172.0,90170.0,0.0002]
[1765218607395,0.03278,90171.0,90170.0,0.0002]
[1765218608383,0.01756,90171.0,90170.0,0.0002]
[1765218608568,0.01756,90171.0,90170.0,0.0012]
[1765218609570,0.01756,90171.0,90170.0,0.01759]
[1765218609922,0.01756,90171.0,90170.0,0.0022]
[1765218610133,0.01756,90171.0,90170.0,0.02007006]
[1765218610331,0.01756,90171.0,90170.0,0.04462006]
[1765218610773,0.01756,90171.0,90170.0,0.06677599]
[1765218611006,0.01756,90171.0,90170.0,0.00468006]
[1765218611212,0.03278,90171.0,90170.0,0.00468006]
[1765218611840,0.01756,90171.0,90170.0,0.00468006]
[1765218613056,0.01756,90171.0,90170.0,0.05400022]
[1765218613203,0.01756,90171.0,90170.0,0.00468006]
[1765218613204,0.2393608,90171.0,90170.0,0.00468006]
[1765218613774,0.2789608,90171.0,90170.0,0.00468006]
[1765218613999,0.35836907,90171.0,90170.0,0.00468006]
[1765218614156,0.28057367,90171.0,90170.0,0.00468006]
[1765218615111,0.29094047,90171.0,90170.0,0.00468006]
[1765218615932,0.63613646,90171.0,90170.0,0.00468006]
[1765218616947,0.63613646,90171.0,90170.0,0.00368006]
[1765218617086,0.74461574,90171.0,90170.0,0.00368006]
[1765218617711,0.74461574,90171.0,90130.0,0.22190031]
[1765218617712,0.2218254,90161.0,90134.0,0.01109459]
[1765218617929,0.58250139,90161.0,90137.0,0.22188377]
[1765218618086,0.61698008,90161.0,90140.0,0.01109385]
[1765218618339,0.60662139,90161.0,90137.0,0.01109422]
[1765218618561,0.59478024,90161.0,90138.0,0.0110941]
[1765218618770,0.59478024,90161.0,90143.0,0.01109348]
[1765218618972,0.61697623,90161.0,90143.0,0.01109348]
[1765218619214,0.60662139,90161.0,90144.0,0.01109336]
[1765218619416,0.62918139,90161.0,90146.0,0.01109311]
[1765218619676,0.62918139,90161.0,90144.0,0.01109336]
[1765218619833,0.66789371,90161.0,90143.0,0.23296148]
[1765218620053,0.66789371,90161.0,90139.0,0.23297182]
[1765218620254,0.78672182,90161.0,90137.0,0.01109422]
[1765218620475,0.78672182,90161.0,90136.0,0.22188627]
[1765218620678,0.78672182,90161.0,90137.0,0.23297663]
[1765218620858,0.67824254,90161.0,90139.0,0.22187834]
[1765218621070,0.67824254,90161.0,90139.0,0.01109397]
[1765218621314,0.67824254,90161.0,90137.0,0.23297663]
[1765218621315,0.66789371,90161.0,90138.0,0.0110941]
[1765218621489,0.66789371,90161.0,90140.0,0.01109385]
[1765218621813,0.66789371,90161.0,90145.0,0.01109323]
[1765218621814,0.64569772,90161.0,90145.0,0.01109323]
[1765218621971,0.29857772,90161.0,90147.0,0.01135]
[1765218622180,0.29857772,90161.0,90147.0,0.24430149]
[1765218622402,0.29857772,90161.0,90148.0,0.22185606]
[1765218622844,0.29857772,90161.0,90150.0,0.01109262]
[1765218622973,0.32269772,90161.0,90144.0,0.01109336]
[1765218623167,0.44592707,90161.0,90144.0,0.01109336]
[1765218623408,0.44592707,90161.0,90135.0,0.22188925]
[1765218623583,0.76892707,90161.0,90130.0,0.01109508]
[1765218623923,0.77926852,90161.0,90130.0,0.02244508]
[1765218624123,0.77926852,90161.0,90128.0,0.02244533]
[1765218624124,0.77926852,90161.0,90128.0,0.01135]
[1765218624335,0.01109557,90126.0,90123.0,0.01135]
[1765218624524,0.01756,90127.0,90125.0,0.23300869]
[1765218624689,0.01756,90127.0,90126.0,0.01528]
[1765218625685,0.01756,90127.0,90126.0,0.03823]
[1765218625897,0.01109348,90143.0,90138.0,0.0110941]
[1765218626104,0.01109385,90140.0,90137.0,0.23297768]
[1765218626319,0.23943215,90142.0,90140.0,0.22187708]
[1765218626320,0.01756,90142.0,90140.0,0.22187708]
[1765218626529,0.01756,90142.0,90141.0,0.01528]
[1765218626747,0.01756,90142.0,90141.0,0.03823]
[1765218626966,0.01756,90142.0,90141.0,0.05475427]
[1765218627143,0.01756,90142.0,90141.0,0.03823]
[1765218627756,0.01756,90142.0,90141.0,0.03923]
[1765218628083,0.01756,90142.0,90141.0,0.001]
[1765218628285,0.01756,90142.0,90141.0,0.01728]
[1765218628501,0.01756,90142.0,90141.0,0.04023]
[1765218628835,0.01756,90142.0,90141.0,0.0410972]
[1765218629019,0.23287503,90162.0,90159.0,0.01109151]
[1765218629020,0.01105,90162.0,90159.0,0.01109151]
[1765218629166,0.01756,90161.0,90160.0,0.22182654]
[1765218629366,0.00038851,90162.0,90161.0,0.01554907]
[1765218629620,0.01794851,90162.0,90161.0,0.00026907]
[1765218629818,0.01794851,90162.0,90161.0,0.01554907]
[1765218630551,0.01794851,90162.0,90161.0,0.00026907]
[1765218630968,0.01794851,90162.0,90161.0,0.00226907]
[1765218631416,0.01794851,90162.0,90161.0,0.04049907]
[1765218631891,0.01794851,90162.0,90161.0,0.04249907]
[1765218632095,0.01794851,90162.0,90161.0,0.064655]
[1765218633305,0.01794851,90162.0,90161.0,0.04249907]
[1765218633525,0.00038851,90162.0,90161.0,0.04249907]
[1765218634217,0.00038851,90162.0,90161.0,0.01954907]
[1765218635090,0.00038851,90162.0,90161.0,0.04249907]
[1765218635578,0.00038851,90162.0,90161.0,0.26432447]
[1765218635793,0.00038851,90162.0,90161.0,0.24137447]
[1765218636273,0.00038851,90162.0,90161.0,0.26432447]
[1765218636914,0.00038851,90162.0,90161.0,0.24137447]
[1765218637364,0.00038851,90162.0,90161.0,0.26432447]
[1765218637608,0.00038851,90162.0,90161.0,0.40992447]
[1765218638049,0.00038851,90162.0,90161.0,0.4320804]
[1765218638730,0.00038851,90162.0,90161.0,0.40992447]
[1765218638935,0.00038851,90162.0,90161.0,0.38697447]
[1765218639124,0.00038851,90162.0,90161.0,0.40992447]
[1765218641449,0.00038851,90162.0,90161.0,0.38697447]
[1765218641628,0.00038851,90162.0,90161.0,0.37169447]
[1765218641824,0.25525145,90162.0,90161.0,0.14986907]
[1765218642039,0.31446676,90162.0,90161.0,0.00426907]
[1765218642248,0.31446676,90162.0,90161.0,0.01927907]
[1765218642249,0.01956138,90162.0,90161.0,0.01927907]
[1765218642430,0.24138432,90162.0,90161.0,0.00426907]
[1765218642649,0.28062432,90162.0,90161.0,0.00426907]
[1765218642852,0.30282031,90162.0,90161.0,0.00226907]
[1765218643297,0.30282031,90162.0,90161.0,0.00026907]
[1765218643963,0.30282031,90162.0,90161.0,0.00126907]
[1765218644165,0.4090635,90162.0,90161.0,0.00126907]
[1765218644417,0.4140635,90162.0,90161.0,0.00026907]
[1765218644919,0.4150635,90162.0,90161.0,0.00026907]
[1765218645984,0.7380635,90162.0,90161.0,0.00026907]
[1765218646185,0.74842974,90162.0,90161.0,0.00026907]
[1765218646830,0.74842974,90162.0,90133.0,0.22189426]
[1765218646831,0.74842974,90162.0,90108.0,0.03545779]
[1765218646832,0.323,90146.0,90108.0,0.03545779]
[1765218646999,0.323,90146.0,90112.0,0.0110973]
[1765218647000,0.01109668,90117.0,90112.0,0.0110973]
[1765218647200,0.01109656,90118.0,90112.0,0.0110973]
[1765218647438,0.01105,90117.0,90114.0,0.01109705]
[1765218648283,0.01756,90120.0,90117.0,0.01109668]
[1765218648490,0.01756,90120.0,90116.0,0.0110968]
[1765218648491,0.01109643,90119.0,90116.0,0.0110968]
[1765218648691,0.01109643,90119.0,90114.0,0.01121363]
[1765218648849,0.01109668,90117.0,90114.0,0.00011658]
[1765218649188,0.01105,90115.0,90114.0,0.00011658]
[1765218649364,0.02645,90115.0,90114.0,0.00011658]
[1765218649548,0.01109643,90119.0,90114.0,0.00011658]
[1765218649549,0.01756,90127.0,90124.0,0.01109582]
[1765218649887,0.01756,90127.0,90119.0,0.01109643]
[1765218649888,0.0110957,90125.0,90119.0,0.01109643]
[1765218650032,0.0110957,90125.0,90121.0,0.22192385]
[1765218650246,0.01756,90127.0,90121.0,0.23302004]
[1765218650453,0.323,90138.0,90126.0,0.01501]
[1765218650649,0.01756,90137.0,90126.0,0.01501]
[1765218650848,0.01756,90137.0,90125.0,0.0110957]
[1765218651054,0.01756,90137.0,90132.0,0.01109483]
[1765218651282,0.01756,90137.0,90133.0,0.01109471]
[1765218651551,0.01756,90137.0,90130.0,0.22190112]
[1765218651552,0.0414,90137.0,90130.0,0.22190112]
[1765218651758,0.01105,90131.0,90130.0,0.01109508]
[1765218651904,0.00161287,90137.0,90136.0,0.22188692]
[1765218652102,0.01105,90145.0,90143.0,0.22186969]
[1765218652364,0.01756,90144.0,90143.0,0.22186969]
[1765218652498,0.01109213,90154.0,90143.0,0.22186969]
[1765218652499,0.01105,90151.0,90147.0,0.22185985]
[1765218652845,0.01105,90151.0,90148.0,0.01109286]
[1765218653006,0.05684,90148.0,90146.0,0.01109311]
[1765218653204,0.05684,90148.0,90147.0,0.22185985]
[1765218653407,0.033,90148.0,90147.0,0.22185985]
[1765218653619,0.035,90148.0,90147.0,0.22185985]
[1765218653812,0.034,90148.0,90147.0,0.22185985]
[1765218654021,0.0186,90148.0,90147.0,0.22185985]
[1765218654218,0.01956,90148.0,90147.0,0.24723985]
[1765218654836,0.01956,90148.0,90147.0,0.27159985]
[1765218655045,0.01956,90148.0,90147.0,0.24723985]
[1765218655246,0.01856,90148.0,90147.0,0.24723985]
[1765218655450,0.01856,90148.0,90147.0,0.22185985]
[1765218655451,0.01756,90148.0,90147.0,0.22185985]
[1765218655645,0.03496,90148.0,90147.0,0.22185985]
[1765218655827,0.01756,90148.0,90147.0,0.25039985]
[1765218656025,0.01105,90164.0,90161.0,0.01109127]
[1765218656234,0.01105,90164.0,90161.0,0.23291667]
[1765218656436,0.25047295,90163.0,90159.0,0.01109151]
[1765218656831,0.01756,90163.0,90159.0,0.01109151]
[1765218657054,0.01756,90163.0,90160.0,0.23291925]
[1765218657262,0.01756,90163.0,90162.0,0.22182294]
[1765218657714,0.22178396,90178.0,90172.0,0.01108991]
[1765218657942,0.01109004,90171.0,90163.0,0.01109102]
[1765218658126,0.34056,90174.0,90168.0,0.0110904]
[1765218658326,0.56235491,90174.0,90168.0,0.23289736]
[1765218658513,0.56235491,90174.0,90171.0,0.01109004]
[1765218658514,0.25044404,90174.0,90171.0,0.01109004]
[1765218658729,0.23288935,90172.0,90168.0,0.0110904]
[1765218658873,0.01108991,90172.0,90169.0,0.23289498]
[1765218659056,0.01756,90174.0,90171.0,0.01109004]
[1765218659264,0.01266287,90175.0,90173.0,0.22179409]
[1765218659457,0.06254159,90199.0,90172.0,0.23288567]
[1765218659458,0.01108758,90191.0,90187.0,0.22175927]
[1765218659659,0.22176456,90186.0,90181.0,0.01108881]
[1765218659922,0.02648794,90188.0,90184.0,0.22176882]
[1765218659923,0.24824791,90188.0,90184.0,0.22176882]
[1765218660076,0.24824791,90188.0,90183.0,0.01108856]
[1765218660077,0.01085,90187.0,90183.0,0.01108856]
[1765218660315,0.01756,90190.0,90187.0,0.01108807]
[1765218660517,0.01756,90190.0,90184.0,0.01108844]
[1765218660719,0.01756,90190.0,90186.0,0.23284698]
[1765218660918,0.00200138,90191.0,90186.0,0.23284698]
[1765218660919,0.00038851,90191.0,90190.0,0.22175407]
[1765218661120,0.00038851,90191.0,90179.0,0.01108905]
[1765218661121,0.01794851,90191.0,90179.0,0.01108905]
[1765218661324,0.01108905,90179.0,90170.0,0.01109016]
[1765218661499,0.0176,90178.0,90177.0,0.22178604]
[1765218661700,0.00200138,90191.0,90187.0,0.01108807]
[1765218661887,0.01108782,90189.0,90183.0,0.002]
[1765218662090,0.01108819,90186.0,90183.0,0.002]
[1765218662452,0.01108794,90188.0,90187.0,0.001]
[1765218662949,0.01108794,90188.0,90183.0,0.01108856]
[1765218662950,0.23284952,90187.0,90184.0,0.01108844]
[1765218663085,0.24369952,90187.0,90184.0,0.01108844]
[1765218663284,0.02193807,90187.0,90184.0,0.23285711]
[1765218663865,0.01085,90187.0,90185.0,0.22176494]
[1765218663987,0.01085,90187.0,90184.0,0.23285676]
[1765218664188,0.01085,90187.0,90185.0,0.22176592]
[1765218664390,0.01108844,90184.0,90177.0,0.0110893]
[1765218664642,0.01607,90184.0,90178.0,0.01108917]
[1765218664944,0.01607,90184.0,90182.0,0.22177332]
[1765218665274,0.23286432,90182.0,90179.0,0.01108905]
[1765218665491,0.23286432,90182.0,90173.0,0.01108979]
[1765218665492,0.0110893,90177.0,90165.0,0.01229]
[1765218665701,0.23289643,90169.0,90166.0,0.22181267]
[1765218665911,0.2328922,90171.0,90165.0,0.01229]
[1765218666089,0.01109065,90166.0,90163.0,0.01109102]
[1765218666256,0.0176,90165.0,90163.0,0.01109102]
[1765218666460,0.01109151,90159.0,90155.0,0.011092]
[1765218666665,0.01109151,90159.0,90140.0,0.7200313]
[1765218666666,0.2329323,90157.0,90156.0,0.1456]
[1765218666865,0.02214151,90159.0,90156.0,0.1456]
[1765218667188,0.01105,90159.0,90156.0,0.1456]
[1765218667386,0.23288035,90159.0,90157.0,0.1456]
[1765218667551,0.01105,90159.0,90157.0,0.36743491]
[1765218667753,0.0176,90165.0,90164.0,0.22181802]
[1765218668138,0.0176,90165.0,90163.0,0.22182048]
[1765218668335,0.02214016,90170.0,90164.0,0.0110909]
[1765218668336,0.01105,90170.0,90164.0,0.0110909]
[1765218668648,0.0110904,90168.0,90164.0,0.0110909]
[1765218668857,0.0110904,90168.0,90163.0,0.001]
[1765218668858,0.22181802,90164.0,90163.0,0.001]
[1765218669066,0.28490401,90164.0,90163.0,0.001]
[1765218669256,0.22184262,90154.0,90148.0,0.1456]
[1765218669456,0.25551262,90154.0,90148.0,0.1456]
[1765218669740,0.28033262,90154.0,90148.0,0.1456]
[1765218670139,0.30252861,90154.0,90148.0,0.1456]
[1765218670619,0.28033262,90154.0,90148.0,0.1456]
[1765218671151,0.28133262,90154.0,90148.0,0.1456]
[1765218671347,0.28133262,90154.0,90135.0,0.23298342]
[1765218671348,0.40375576,90154.0,90140.0,0.1456]
[1765218671547,0.40375576,90154.0,90133.0,0.1456]
[1765218671548,0.72675576,90154.0,90133.0,0.1456]
[1765218671953,0.72675576,90154.0,90124.0,0.24530081]
[1765218671954,0.78927875,90154.0,90124.0,0.01109582]
[1765218672192,0.78927875,90154.0,90119.0,0.1456]
[1765218672399,0.78927875,90154.0,90121.0,0.01109619]
[1765218672400,0.0110957,90125.0,90121.0,0.01109619]
[1765218672617,0.0176,90124.0,90123.0,0.23301459]
[1765218672887,0.01109459,90134.0,90123.0,0.23301459]
[1765218672888,0.01109311,90146.0,90140.0,0.01109385]
[1765218673073,0.01109311,90146.0,90143.0,0.01109348]
[1765218673074,0.0176,90145.0,90143.0,0.01109348]
[1765218673273,0.0176,90145.0,90143.0,0.23296119]
[1765218673773,0.22184818,90152.0,90143.0,0.23296119]
[1765218673774,0.01109176,90157.0,90151.0,0.22184849]
[1765218673918,0.001,90154.0,90152.0,0.01109237]
[1765218674128,0.2329349,90154.0,90151.0,0.0110925]
[1765218674327,0.25053087,90156.0,90154.0,0.2218423]
[1765218674328,0.0176,90156.0,90154.0,0.2218423]
[1765218674550,0.01109139,90160.0,90156.0,0.22183635]
[1765218674752,0.0176,90159.0,90157.0,0.22183461]
[1765218674976,0.01109102,90163.0,90160.0,0.23291901]
[1765218675112,0.01109102,90163.0,90156.0,0.01109188]
[1765218675113,0.0176,90162.0,90156.0,0.01109188]
[1765218675317,0.011092,90155.0,90144.0,0.01109336]
[1765218675559,0.22184545,90153.0,90146.0,0.01109311]
[1765218675731,0.01109237,90152.0,90147.0,0.22185965]
[1765218675929,0.22186038,90147.0,90143.0,0.2329608]
[1765218676130,0.01109348,90143.0,90140.0,0.1456]
[1765218676370,0.22187461,90141.0,90140.0,0.14571658]
[1765218676788,0.2329638,90143.0,90140.0,0.14571658]
[1765218676952,0.23294809,90149.0,90146.0,0.2218622]
[1765218677277,0.23945097,90151.0,90146.0,0.23295531]
[1765218677479,0.0176,90151.0,90148.0,0.22185575]
[1765218677696,0.0176,90151.0,90150.0,0.23798246]
[1765218678085,0.0221409,90164.0,90158.0,0.01109163]
[1765218678086,0.2329133,90163.0,90158.0,0.01109163]
[1765218678289,0.2329133,90163.0,90157.0,0.01109176]
[1765218678290,0.23291706,90161.0,90159.0,0.0113]
[1765218678490,0.011092,90155.0,90151.0,0.0110925]
[1765218678689,0.01109139,90160.0,90157.0,0.01109176]
[1765218678899,0.01109127,90161.0,90157.0,0.01109176]
[1765218679076,0.01109163,90158.0,90155.0,0.011092]
[1765218679297,0.01109139,90160.0,90155.0,0.011092]
[1765218679298,0.23292183,90159.0,90155.0,0.011092]
[1765218679641,0.01109139,90160.0,90159.0,0.001]
[1765218679920,0.0176,90162.0,90160.0,0.22182777]
[1765218680101,0.0176,90162.0,90161.0,0.2379554]
[1765218680684,0.0176,90162.0,90161.0,0.01613]
[1765218680885,0.0176,90162.0,90159.0,0.01209151]
[1765218680886,0.2218254,90161.0,90159.0,0.001]
[1765218681113,0.63041804,90160.0,90159.0,0.001]
[1765218681283,0.63041804,90160.0,90155.0,0.1456]
[1765218681284,0.2218377,90156.0,90155.0,0.1456]
[1765218681491,0.23989057,90156.0,90155.0,0.1456]
[1765218681693,0.26285057,90156.0,90155.0,0.1466]
[1765218681897,0.26285057,90156.0,90155.0,0.001]
[1765218682084,0.26285057,90156.0,90143.0,0.01109348]
[1765218682282,0.26285057,90156.0,90146.0,0.23295542]
[1765218682283,0.23294527,90150.0,90146.0,0.23295542]
[1765218682506,0.23294527,90150.0,90135.0,0.01109446]
[1765218682507,0.01109348,90143.0,90135.0,0.01109446]
[1765218682705,0.02753348,90143.0,90139.0,0.01109397]
[1765218682909,0.02753348,90143.0,90140.0,0.01121043]
[1765218683139,0.23296355,90143.0,90140.0,0.01121043]
[1765218683339,0.22187341,90142.0,90140.0,0.00011658]
[1765218683697,0.22187341,90142.0,90140.0,0.00211658]
[1765218684236,0.01109336,90144.0,90141.0,0.00035887]
[1765218684444,0.01109336,90144.0,90140.0,0.00211658]
[1765218684445,0.22187461,90141.0,90140.0,0.00211658]
[1765218684645,0.23831461,90141.0,90140.0,0.00011658]
[1765218684856,0.23831461,90141.0,90140.0,0.00311658]
[1765218685030,0.26127461,90141.0,90140.0,0.00350536]
[1765218685614,0.58427461,90141.0,90140.0,0.00350536]
[1765218685912,0.58427461,90141.0,90140.0,0.00250536]
[1765218686108,0.58427461,90141.0,90140.0,0.00150536]
[1765218686925,0.58627461,90141.0,90140.0,0.00150536]
[1765218687526,0.58627461,90141.0,90140.0,0.00050536]
[1765218687941,0.71794988,90141.0,90140.0,0.00050536]
[1765218688792,0.6094706,90141.0,90140.0,0.00050536]
[1765218691876,0.60487461,90141.0,90140.0,0.00050536]
[1765218692775,0.58191461,90141.0,90140.0,0.00050536]
[1765218693185,0.24247461,90141.0,90140.0,0.00050536]
[1765218693707,0.25891461,90141.0,90140.0,0.00050536]
[1765218694194,0.0196,90141.0,90140.0,0.22238244]
[1765218694395,0.01109262,90150.0,90140.0,0.22238244]
[1765218694396,0.01109274,90149.0,90145.0,0.01109323]
[1765218694552,0.23945742,90148.0,90145.0,0.01109323]
[1765218694754,0.02869286,90148.0,90144.0,0.2218657]
[1765218695302,0.23295296,90147.0,90144.0,0.2218657]
[1765218695601,0.23295579,90146.0,90143.0,0.23296308]
[1765218695806,0.01109311,90146.0,90144.0,0.22186599]
[1765218696148,0.0176,90145.0,90144.0,0.22186599]
[1765218696348,0.002,90148.0,90147.0,0.22185985]
[1765218696650,0.03871232,90167.0,90147.0,0.22185985]
[1765218696651,0.01109127,90161.0,90156.0,0.23292865]
[1765218696874,0.0176,90160.0,90157.0,0.01109176]
[1765218697434,0.01109151,90159.0,90155.0,0.011092]
[1765218697734,0.0176,90160.0,90153.0,0.01109225]
[1765218697947,0.0176,90160.0,90158.0,0.2218327]
[1765218698179,0.22183083,90159.0,90156.0,0.24422901]
[1765218698379,0.02869139,90160.0,90157.0,0.001]
[1765218698586,0.22183278,90158.0,90157.0,0.001]